Cogmind - Beta 9.4 @@@ ROGUE MODE // 2020.01.11 @ 00:13:54 Player: eldritch Result: Destroyed by G-34 Mercenary with Small Laser Performance ------------- Evolutions (0) 0 Regions Visited (1) 200 Robots Destroyed (20) 100 Value Destroyed (516) 516 Prototype IDs (0) 0 Alien Tech Used (0) 0 Bonus (8) 8 TOTAL SCORE: 824 Bonus ------- High Alert Combat Kills 8 Cogmind --------- Core Integrity 0/250 Matter 254/300 Energy 100/100 System Corruption 0% Temperature Cool (6) Movement Walking (150) Ox1 Location -10/Materials Parts ------- > --- POWER (1) -------- (None) > --- PROPULSION (2) --- Aluminum Leg > --- UTILITY (2) ------ Small Storage Unit Medium Storage Unit > --- WEAPON (2) ------- Assault Rifle > --- INVENTORY (10) --- Light Treads Aluminum Leg Compact Wheel Compact Wheel Improved Heat Sink Hacking Suite Peak State ------------ > --- POWER ------------ Light Ion Engine > --- PROPULSION ------- Aluminum Leg Aluminum Leg > --- UTILITY ---------- Small Storage Unit Medium Storage Unit > --- WEAPON ----------- Assault Rifle Assault Rifle > --- INVENTORY -------- Light Treads Aluminum Leg Compact Wheel Compact Wheel Improved Heat Sink Hacking Suite [Rating: 8] Favorites ----------- Power Light Ion Engine Engine Light Ion Engine Propulsion Aluminum Leg Leg Aluminum Leg Utility Small Storage Unit Storage Small Storage Unit Weapon Assault Rifle Energy Gun EM Pulse Gun Ballistic Gun Assault Rifle Build | -11 -10 ------- Run | Scr Mat Slots Evolved . | . . Power . | . . Propulsion . | . . Utility . | . . Weapon . | . . Parts Attached 12 | . 12 Power 2 | . 2 Engine 2 | . 2 Core . | . . Reactor . | . . Propulsion 6 | . 6 Treads . | . . Leg 6 | . 6 Wheel . | . . Hover . | . . Flight . | . . Utility 1 | . 1 Device . | . . Storage 1 | . 1 Processor . | . . Hackware . | . . Protection . | . . Artifact . | . . Weapon 3 | . 3 Energy Gun 1 | . 1 Energy Cannon . | . . Ballistic Gun 2 | . 2 Ballistic Cannon . | . . Launcher . | . . Special Weapon . | . . Impact Weapon . | . . Slashing Weapon . | . . Piercing Weapon . | . . Special Melee Weapon . | . . Unidentified Prototypes . | . . Parts Lost 7 | . 7 Power 2 | . 2 Propulsion 2 | . 2 Utility . | . . Weapon 3 | . 3 Highest Loss Streak 5 | . 5 Average Slot Usage (%) 86 | . 86 Engine 12 | . 12 Leg 27 | . 27 Storage 17 | . 17 Energy Gun 11 | . 11 Ballistic Gun 16 | . 16 Naked Turns . | . . Heaviest Build 19 | 10 19 Greatest Support 20 | 20 20 Greatest Overweight (x) 1 | . 1 Average Overweight (x) . | . . Largest Inventory Capacity 10 | . 10 Average Capacity 6 | . 6 Most Carried 6 | . 6 Average Carried 5 | . 5 Final Capacity 10 | 6 10 Final Carried 6 | 6 6 Class Distribution -------------------- 100% | Mutant Dominant Class ---------------- Mutant | -10/Materials Resources | -11 -10 ----------- Run | Scr Mat Matter Collected 465 | 200 265 Remotely . | . . Salvage Created 695 | . 695 Parts 34 | . 34 Haulers Intercepted 1 | . 1 Recyclers Shooed 1 | . 1 Parts Field Recycled . | . . Retrieved Matter . | . . Parts Self-Destructed . | . . Prevented . | . . Kills | -11 -10 ------- Run | Scr Mat Combat Hostiles Destroyed 14 | . 14 Guns 11 | . 11 AOE 3 | . 3 Classes Destroyed 7 | . 7 Worker 1 | . 1 Builder 1 | . 1 Hauler 1 | . 1 Recycler 1 | . 1 Operator 2 | . 2 Swarmer 3 | . 3 Grunt 11 | . 11 Best Kill Streak 6 | . 6 Combat Bots Only 4 | . 4 Max Kills in Single Turn 3 | . 3 Gunslinging . | . . Exploded 2 | . 2 Melee . | . . Uniques/NPCs Destroyed . | . . Combat | -11 -10 -------- Run | Scr Mat Damage Taken 1087 | . 1087 Core 253 | . 253 Absorbed by Shields . | . . Core Remaining (%) 100 | 100 . Volleys Fired 59 | . 59 Largest 2 | . 2 Hottest 60 | . 60 Shots Fired 114 | . 114 Gun 114 | . 114 Cannon . | . . Launcher . | . . Special . | . . Kinetic 76 | . 76 Thermal 1 | . 1 Explosive . | . . Electromagnetic 37 | . 37 Robot Hit Streak 16 | . 16 Robot Miss Streak 2 | . 2 Penetration Max . | . . Secondary Targets 2 | . 2 Max Gunslinging Chain 1 | . 1 Shots Hit Robots 81 | . 81 Core Hits 33 | . 33 Critical Hits . | . . Critical Kills . | . . Critical Parts Destroyed . | . . Melee Attacks . | . . Impact . | . . Slashing . | . . Piercing . | . . Sneak Attacks . | . . Combat Hostiles . | . . Follow-up Attacks . | . . Damage Inflicted 1151 | . 1151 Guns 1028 | . 1028 Cannons . | . . Explosions 123 | . 123 Melee . | . . Ramming . | . . Kinetic 627 | . 627 Thermal 133 | . 133 Explosive . | . . Electromagnetic 391 | . 391 Impact . | . . Slashing . | . . Piercing . | . . Highest Corruption . | . . Average Corruption . | . . Corruption Purged . | . . Overload Shots . | . . Overflow Damage . | . . Projectiles . | . . Explosions . | . . Melee . | . . Knockbacks . | . . Impact . | . . Kinetic . | . . Secondary . | . . Self-Inflicted Damage 176 | . 176 Shots 3 | . 3 Rammed . | . . Targets Rammed . | . . Kicked . | . . Crushed . | . . Highest Temperature 72 | . 72 Average Temperature 16 | . 16 Received Heat Transfer 468 | . 468 Siege Activations . | . . Robots Corrupted . | . . Combat Hostiles . | . . Parts Fried 2 | . 2 Impact Corruptions . | . . Robots Melted . | . . Combat Hostiles . | . . Parts Melted . | . . Heat Transferred 225 | . 225 Parts Sabotaged . | . . Parts Stolen . | . . Parts Stripped . | . . Power Chain Reactions 2 | . 2 Missiles Intercepted . | . . Alert | -11 -10 ------- Run | Scr Mat Peak Influence 402 | . 402 Average Influence 210 | . 210 Maximum Alert Level 2 | . 2 Low Security (%) 40 | . 40 Level 1 59 | . 59 Level 2 . | . . Level 3 . | . . Level 4 . | . . Level 5 . | . . High Security . | . . Max Security . | . . Squads Dispatched 4 | . 4 Investigation 1 | . 1 Extermination . | . . Reinforcement 3 | . 3 Assault . | . . Garrison . | . . Intercept . | . . Construction Impeded . | . . Haulers Reinforced . | . . Stealth | -11 -10 --------- Run | Scr Mat Distress Signals 1 | . 1 Communications Jammed . | . . Distress Signals . | . . Times Spotted 22 | . 22 Peak Tracking Total 6 | . 6 Tactical Retreats 1 | . 1 Traps | -11 -10 ------- Run | Scr Mat Traps Triggered 1 | . 1 Indirectly . | . . Trap Hack Attempts . | . . Triggered . | . . Disarmed . | . . Reprogrammed . | . . Reused . | . . Traps Extracted . | . . Installed . | . . Triggered . | . . Machines | -11 -10 ---------- Run | Scr Mat Machines Disabled 4 | . 4 Max in Single Turn 2 | . 2 Machines Sabotaged . | . . Garrisons Compromised . | . . Overloaded Fab Kills . | . . Fab Network Shutdowns . | . . Hacking | -11 -10 --------- Run | Scr Mat Machines Accessed 1 | . 1 Terminals 1 | . 1 Fabricators . | . . Repair Stations . | . . Recycling Units . | . . Scanalyzers . | . . Garrison Access . | . . Total Hacks 2 | . 2 Successful 2 | . 2 Failed . | . . Catastrophic . | . . Database Lockouts . | . . Manual 2 | . 2 Terminals 2 | . 2 Fabricators . | . . Repair Stations . | . . Recycling Units . | . . Scanalyzers . | . . Garrison Access . | . . Terminal Hacks . | . . Fabricator Hacks . | . . Repair Station Hacks . | . . Recycling Unit Hacks . | . . Scanalyzer . | . . Garrison Access Hacks . | . . Unauthorized Hacks 4 | . 4 Terminals 2 | . 2 Track 1 | . 1 Botnet 1 | . 1 Fabricators . | . . Repair Stations . | . . Recycling Units . | . . Scanalyzers . | . . Garrison Access . | . . Data Cores Recovered . | . . Used . | . . Hacking Detections 1 | . 1 Full Trace Events . | . . Feedback Events . | . . Feedback Blocked . | . . Robot Schematics Acquired . | . . Robots Built . | . . Matter . | . . Time . | . . Total Robot Build Rating . | . . Part Schematics Acquired . | . . Parts Built . | . . Matter . | . . Time . | . . Total Part Build Rating . | . . Parts Repaired . | . . Time . | . . Parts Recycled . | . . Recycled Matter . | . . Retrieved Matter . | . . Retrieved Components . | . . Parts Scanalyzed . | . . Part Schematics Acquired . | . . Parts Damaged . | . . Bothacking | -11 -10 ------------ Run | Scr Mat Used RIF Installer . | . . Robots Hacked . | . . Non-combat . | . . Combat . | . . Robot Hacks Applied . | . . Relay Couplers Released . | . . Robots Rewired . | . . Allies Hacked . | . . Hacks Repelled . | . . Allies | -11 -10 -------- Run | Scr Mat Total Allies . | . . Largest Group . | . . Highest-Rated Group . | . . Highest-Rated Ally . | . . Total Orders . | . . Ally Attacks . | . . Total Damage . | . . Kills . | . . Allies Corrupted . | . . Allies Melted . | . . Intel | -11 -10 ------- Run | Scr Mat Robot Analysis Total . | . . Derelict Logs Recovered . | . . Drone Launches . | . . Drone Recoveries . | . . Exploration | -11 -10 ------------- Run | Scr Mat Turns Passed 405 | . 405 Spaces Moved 159 | 1 158 Core . | . . Treads . | . . Legs 159 | 1 158 Wheels . | . . Hover . | . . Flight . | . . Fastest Speed 120 | 120 120 Average Speed 120 | 120 120 Slowest Speed 150 | 120 150 Overloaded Moves . | . . Propulsion Burnouts . | . . Robots Hopped . | . . Cave-ins Triggered . | . . Exploration Rate (%) 19 | 2 37 Regions Visited 1 Branch Regions . Pre-discovered Areas . | . . Known Exits Taken . | . . Unknown Exits Taken 1 | 1 . Scrap Searched . | . . Spaces Dug . | . . Terrain Destroyed 40 | . 40 Melee . | . . Projectile . | . . AOE 40 | . 40 Actions | -11 -10 --------- Run | Scr Mat Total 261 | . 261 Wait 23 | . 23 Move 158 | . 158 Hop . | . . Pick Up 2 | . 2 Fast Attach 4 | . 4 Attach 2 | . 2 Detach . | . . Swap 6 | . 6 Drop 7 | . 7 Fire 59 | . 59 Melee . | . . Ram . | . . Kick . | . . Crush . | . . Escape Stasis . | . . Rewire . | . . Trap . | . . Miscellaneous . | . . Route ------- -11/Scrapyard -10/Materials History --------- Turn | Location | Event 1 | -11/Scrapyard | Discovered new exit (range 0) 1 | -11/Scrapyard | Entered Materials 91 | -10/Materials | Core integrity fell below 50% 313 | -10/Materials | Build established: Mutant 394 | -10/Materials | Core integrity fell below 20% 406 | -10/Materials | Destroyed by G-34 Mercenary with Small Laser Last Messages --------------- 00356_ R-06 Scavenger collects Aluminum Leg. 00356_ K-01 Serf collects debris. 00359_ Acquired 6 matter. 00359_ K-01 Serf collects debris. 00374_ G-34 Mercenary destroyed. 00374_ Switching to secondary target: G-34 Mercenary. 00379_ Lgt. Ion Engine destroyed. 00380_ G-34 Mercenary destroyed. 00380_ Switching to secondary target: G-34 Mercenary. 00380_ U-05 Engineer builds a Door. 00386_ G-34 Mercenary destroyed. 00387_ Assault Rifle destroyed. 00390_ Acquired Sml. Laser. 00392_ Aluminum Leg destroyed. 00392_ R-06 Scavenger inserts Aluminum Leg into recycling unit. 00395_ Acquired Aluminum Leg. 00397_ Aluminum Leg destroyed. 00398_ Sml. Laser destroyed. 00405_ K-01 Serf collects debris. 00405_ G-47 Trooper destroyed. Map ----- +----------------------------------------------------+ | ?????????????????????????????????????????????????? | | ?????????????????????????????????????????????????? | | ?????????????????????????????????????????????????? | | ?????????????????????????????????????????????????? | | ?????????????????????????????????????????????????? | | ?????????????????????????????????????????????????? | | ?????????????????????????????????????????????????? | | ?????????????????????????????????????????????????? | | ?????????????????????????????????????????????????? | | ?????????????????????????????????????????????????? | | ?????????????????????????????????????????????????? | | ?????????????????????????????????????????????????? | | ?????????????????????????????????????????????????? | | ?????????????????????????????????????????????????? | | ?????????????????????????????????????????????????? | | ?????????????????????????????????????????????????? | | ?????????????????????????????????????????????????? | | ?????????????????????????????????????????????????? | | ?????????????????????????????????????????????????? | | ?????????????????????????????????????????????????? | | ???????????######+#######????????????????????????? | | ??????????? ????????????????????????? | | ?????????? ????????????????????????? | | ??????????[ !!! ????????????????????????? | | ?????????? !!! ##############???????????? | | ?????????? !! #@ ! ! #???????????? | | ??????????""" !#*g #???????????? | | ??????????"Y !k%g""""" #?? ????????? | | ??????????""" =#=""""""""" #?? ????????? | | ???????? +*=""" ""?????? ????????? | | ???????? ! #########??????? ????????? | | ???????? #####+############????? ???????? | | ?????????? ?????# %!% #????? ???????? | | ???????????? ???????# "T% !!! #????? ???????? | | ????????????????????# * !! #?????#+#??????? | | ????????????????????# ! #?????# #??????? | | ????????????????????# #?????# #??????? | | ????????????????????# #???### ###????? | | ????????????????????#######+########### #????? | | ????????????? ##### #????? | | ????????????? / w #????? | | ????????????? ##### k #????? | | ?????????????????????????# u #????? | | ?????????????????????????# ###### | | ?????????????????????????# *! | | ?????????????????????????# ################ | | ?????????????????????????# #??????????????? | | ???????????????????#########+## #??????????????? | | ?????????????????? """ # #?????????????## | | ?????????????????? """ # #?????????????# | +----------------------------------------------------+ Best States ------------- Heat Dissipation 25 Energy Generation 10 Energy Capacity 125 Matter Stores 300 Matter Capacity 300 Sight Range 16 Terrain Scan Density 10 Evasion (%) 40 Item Schematics ----------------- None Robot Schematics ------------------ None Fabricated ------------ Nothing Alien Tech Used ----------------- None Achievements -------------- None Challenges ------------ None Game ------ Seed DefenseFortressMatrix Manual? 0 Play Time 00:06:34 Cumulative 206.5 hours Start 2020.01.10 @ 00:03:43 End 2020.01.11 @ 00:13:54 Sessions 1 Manual Loads 0 Difficulty Rogue Special Mode None Game No. 459 Rogue 459 Adventurer 0 Explorer 0 Win Type - Total 4 Types 3/0/0/1/0/0/0 Lore% 62 Gallery% 65 Achievement% 56 Wizard Run 0 Options --------- ASCII 0 Keyboard 0 Movement Arrows Keybinds 0 Fullscreen 1 Font 18/SmallcapsGlow Map View 76x50 Tactical HUD 1 Map Filters NONE Filters NONE Steam 1 RUN: 5618b725-5f6c-4d1d-b1b2-0943720ff3a8